fUST/lending_fUST_20240918
["ID","MTS","AMOUNT","RATE_DAILY","PERIOD"]
[338436645,1726637451769,-153.0,0.000192,2]
[338436646,1726637451779,-153.1287431,0.000192,2]
[338436647,1726637451790,-150.112233,0.000193,2]
[338436648,1726637451803,-150.112233,0.000193,2]
[338436649,1726637451815,-150.112233,0.000193,2]
[338436650,1726637451826,-150.112233,0.000193,2]
[338436651,1726637451836,-4042.0,0.000194,2]
[338436652,1726637451846,-150.112233,0.000194,2]
[338436653,1726637451858,-150.112233,0.000194,2]
[338436654,1726637451870,-150.112233,0.000194,2]
[338436655,1726637451880,-1095.51498493,0.00019443,2]
[338436656,1726637451890,-12064.83262104,0.00019451,2]
[338436657,1726637451902,-1465.12116756,0.00019452,5]
[338436658,1726637451913,-155.461562,0.00019452,2]
[338436659,1726637451923,-151.491314,0.00019452,2]
[338436660,1726637451935,-500.0,0.00019452,2]
[338436661,1726637451944,-502.48217541,0.00019452,2]
[338436662,1726637451954,-500.0,0.00019452,2]
[338436663,1726637451963,-281.83210534,0.00019452,2]
[338436664,1726637451972,-500.0,0.00019452,2]
[338436665,1726637451981,-1000.0,0.00019452,2]
[338436666,1726637451991,-500.0,0.00019452,2]
[338436667,1726637452001,-500.0,0.00019452,2]
[338436668,1726637452013,-500.0,0.00019452,2]
[338436669,1726637452024,-875.03,0.00019452,2]
[338436670,1726637452034,-184.50652819,0.00019452,2]
[338436671,1726637452048,-501.58346017,0.00019452,2]
[338436672,1726637452058,-500.0,0.00019452,2]
[338436673,1726637452070,-500.0,0.00019452,2]
[338436674,1726637452080,-500.0,0.00019452,2]
[338436675,1726637452090,-500.0,0.00019452,2]
[338436676,1726637452101,-981.36,0.00019452,2]
[338436677,1726637452112,-500.0,0.00019452,2]
[338436678,1726637452122,-547.8,0.00019452,2]
[338436679,1726637452133,-500.0,0.00019452,2]
[338436680,1726637452143,-500.0,0.00019452,2]
[338436681,1726637452156,-891.01,0.00019452,2]
[338436682,1726637452166,-151.0,0.00019452,2]
[338436683,1726637452175,-500.0,0.00019452,2]
[338436684,1726637452185,-151.0,0.00019452,2]
[338436685,1726637452197,-151.0,0.00019452,2]
[338436686,1726637452209,-151.0,0.00019452,2]
[338436687,1726637452219,-500.0,0.00019452,2]
[338436688,1726637452231,-500.0,0.00019452,2]
[338436689,1726637452241,-500.0,0.00019452,2]
[338436690,1726637452251,-151.0,0.00019452,2]
[338436691,1726637452262,-151.0,0.00019452,2]
[338436692,1726637452273,-500.0,0.00019452,2]
[338436693,1726637452283,-500.0,0.00019452,2]
[338436694,1726637452294,-500.0,0.00019452,2]
[338436695,1726637452306,-506.85,0.00019452,2]
[338436696,1726637452317,-502.41900055,0.00019452,2]
[338436697,1726637452328,-1384.23,0.00019452,2]
[338436698,1726637452338,-500.0,0.00019452,2]
[338436699,1726637452349,-151.0,0.00019452,2]
[338436700,1726637452359,-151.0,0.00019452,2]
[338436701,1726637452370,-500.0,0.00019452,2]
[338436702,1726637452381,-500.0,0.00019452,2]
[338436703,1726637452392,-151.0,0.00019452,2]
[338436704,1726637452402,-500.0,0.00019452,2]
[338436705,1726637452412,-151.0,0.00019452,2]
[338436706,1726637452423,-500.84,0.00019452,2]
[338436707,1726637452434,-500.0,0.00019452,2]
[338436708,1726637452444,-500.0,0.00019452,2]
[338436709,1726637452454,-212.82255506,0.00019452,2]
[338436710,1726637452465,-500.0,0.00019452,2]
[338436711,1726637452477,-500.0,0.00019452,2]
[338436712,1726637452487,-500.0,0.00019452,2]
[338436713,1726637452498,-500.0,0.00019452,2]
[338436714,1726637452507,-500.0,0.00019452,2]
[338436715,1726637452519,-500.0,0.00019452,2]
[338436716,1726637452528,-500.0,0.00019452,2]
[338436717,1726637452539,-500.0,0.00019452,2]
[338436718,1726637452550,-507.05187652,0.00019452,2]
[338436719,1726637452561,-500.0,0.00019452,2]
[338436720,1726637452573,-500.0,0.00019452,2]
[338436721,1726637452583,-367.44065032,0.00019452,2]
[338436722,1726637453800,-383.07089536,0.00019058,2]
[338436723,1726637453809,-1000.0,0.00019058,2]
[338436724,1726637453819,-202.47934968,0.00019452,2]
[338436725,1726637453828,-1258.19,0.00019452,2]
[338436726,1726637453841,-500.0,0.00019452,2]
[338436727,1726637453851,-632.77908939,0.00019452,2]
[338436728,1726637453862,-500.0,0.00019452,2]
[338436729,1726637453873,-1982.38,0.00019452,2]
[338436730,1726637453883,-560.7,0.00019452,2]
[338436731,1726637453892,-500.0,0.00019452,2]
[338436732,1726637453904,-500.0,0.00019452,2]
[338436733,1726637453914,-496.18891021,0.00019452,2]
[338436734,1726637453925,-500.0,0.00019452,2]
[338436735,1726637453935,-500.0,0.00019452,2]
[338436736,1726637453946,-500.0,0.00019452,2]
[338436737,1726637453956,-500.0,0.00019452,2]
[338436738,1726637453967,-500.0,0.00019452,2]
[338436739,1726637453978,-500.0,0.00019452,2]
[338436740,1726637453988,-500.0,0.00019452,2]
[338436741,1726637454001,-517.87,0.00019452,2]
[338436742,1726637454011,-500.0,0.00019452,2]
[338436743,1726637454022,-1293.09661184,0.00019452,2]
[338436744,1726637455241,-657.20338816,0.00019452,2]
[338436745,1726637455250,-500.0,0.00019452,2]
[338436746,1726637455261,-500.0,0.00019452,2]
[338436747,1726637455270,-500.0,0.00019452,2]
[338436748,1726637455280,-267.29090509,0.00019452,2]
[338436749,1726637455291,-232.70909491,0.00019452,2]
[338436750,1726637455300,-503.8,0.00019452,2]
[338436751,1726637455310,-151.0,0.00019452,2]
[338436752,1726637455320,-151.0,0.00019452,2]
[338436753,1726637455329,-900.96,0.00019452,2]
[338436754,1726637455339,-445.39235273,0.00019452,2]
[338436755,1726637455349,-500.0,0.00019452,2]
[338436756,1726637455364,-3026.76,0.00019452,2]
[338436757,1726637455388,-581.91535978,0.00019452,2]
[338436758,1726637455405,-500.0,0.00019452,2]
[338436759,1726637455425,-716.71,0.00019452,2]
[338436760,1726637455447,-500.0,0.00019452,2]
[338436761,1726637455469,-500.0,0.00019452,2]
[338436762,1726637455488,-500.0,0.00019452,2]
[338436763,1726637455508,-500.0,0.00019452,2]
[338436764,1726637455522,-500.0,0.00019452,2]
[338436765,1726637455541,-500.0,0.00019452,2]
[338436766,1726637455559,-500.0,0.00019452,2]
[338436767,1726637455579,-610.83,0.00019452,2]
[338436768,1726637455593,-500.0,0.00019452,2]
[338436769,1726637455613,-1873.08,0.00019452,2]
[338436770,1726637455630,-2196.49,0.00019452,2]
[338436771,1726637455648,-500.0,0.00019452,2]
[338436772,1726637455666,-500.0,0.00019452,2]
[338436773,1726637455681,-500.0,0.00019452,2]
[338436774,1726637455695,-590.62,0.00019452,2]
[338436775,1726637455710,-972.07,0.00019452,2]
[338436776,1726637455725,-500.0,0.00019452,2]
[338436777,1726637455740,-1513.32,0.00019452,2]
[338436778,1726637455754,-500.0,0.00019452,2]
[338436779,1726637455769,-1580.29,0.00019452,2]
[338436780,1726637455783,-500.0,0.00019452,2]
[338436781,1726637455798,-500.0,0.00019452,2]
[338436782,1726637455813,-674.0,0.00019452,2]
[338436783,1726637455828,-500.0,0.00019452,2]
[338436784,1726637455844,-336.65623815,0.00019452,2]
[338436785,1726637455865,-205.97376185,0.00019452,2]
[338436786,1726637455880,-500.0,0.00019452,2]
[338436787,1726637455894,-659.3,0.00019452,2]
[338436788,1726637455909,-500.0,0.00019452,2]
[338436789,1726637455925,-1086.16,0.00019452,2]
[338436790,1726637455940,-500.0,0.00019452,2]
[338436791,1726637455956,-500.0,0.00019452,2]
[338436792,1726637455970,-336.37146251,0.00019452,2]
[338436802,1726637719338,586.4,0.00024,120]
[338436811,1726638325415,1000.0,0.00024,120]
[338436812,1726638336547,1000.0,0.00023,60]
[338436817,1726638516351,5204.2,0.00023,60]
[338436848,1726638631909,-300.0,0.00018094,2]
[338436850,1726638631922,-300.0,0.00018094,2]
[338436852,1726638631931,-2443.56247291,0.00018095,2]
[338436854,1726638631945,-14907.848621,0.00018095,2]
[338436881,1726638637968,-334.29470453,0.00018095,2]
[338436882,1726638637981,-7214.29420156,0.00018095,2]
[338436883,1726638637992,-1000.0,0.00019,19]
[338436884,1726638638003,-1000.0,0.00019058,2]
[338436885,1726638638014,-383.07089536,0.00019067,2]
[338436886,1726638638025,-1225.78975075,0.00019078,2]
[338436887,1726638638036,-3100.54517443,0.00019078,2]
[338436888,1726638638047,-500.0,0.00019157,2]
[338436889,1726638638058,-500.0,0.00019157,2]
[338436890,1726638638067,-283.64626947,0.00019157,2]
[338436892,1726638638077,-306533.700296,0.00019158,3]
[338436893,1726638638087,-502.71389276,0.00019167,2]
[338436894,1726638638096,-500.0,0.00019173,2]
[338436895,1726638638106,-500.0,0.00019173,2]
[338436896,1726638638115,-500.0,0.00019173,2]
[338436897,1726638638124,-500.0,0.00019173,2]
[338436898,1726638638133,-538.72167419,0.00019173,2]
[338436899,1726638638142,-500.0,0.00019173,2]
[338436900,1726638638151,-591.02249132,0.00019173,2]
[338436901,1726638638160,-500.0,0.00019173,2]
[338436902,1726638638169,-500.99242898,0.00019173,2]
[338436903,1726638638178,-500.0,0.00019173,2]
[338436904,1726638638188,-500.48891412,0.00019173,2]
[338436905,1726638638198,-500.0,0.00019177,2]
[338436906,1726638638208,-228.27008,0.00019177,2]
[338436907,1726638638220,-572.66824679,0.00019177,2]
[338436908,1726638638231,-559.18559282,0.00019177,2]
[338436909,1726638638243,-500.0,0.00019177,2]
[338436910,1726638638253,-500.0,0.00019177,2]
[338436911,1726638638263,-500.0,0.00019177,2]
[338436912,1726638638272,-500.0,0.00019177,2]
[338436913,1726638638282,-39.11258727,0.00019177,2]
[338436924,1726638640005,-460.88741273,0.00019177,2]
[338436925,1726638640015,-500.0,0.00019177,2]
[338436926,1726638640026,-286.93580671,0.00019177,2]
[338436927,1726638640035,-300.0,0.00019177,2]
[338436928,1726638640045,-19892.98341716,0.00019178,5]
[338436929,1726638640116,-172.3742646,0.00019178,5]
[338436931,1726638640127,-500.0,0.00019178,2]
[338436932,1726638640137,-257.29842711,0.00019178,2]
[338436933,1726638640147,-1000.0,0.00019178,2]
[338436934,1726638640157,-500.0,0.00019178,2]
[338436935,1726638640167,-500.0,0.00019178,2]
[338436936,1726638640186,-500.0,0.00019178,2]
[338436937,1726638640196,-500.0,0.00019178,2]
[338436938,1726638640206,-500.0,0.00019178,2]
[338436939,1726638640216,-237.29,0.00019178,2]
[338436940,1726638640227,-500.0,0.00019178,2]
[338436941,1726638640240,-500.0,0.00019178,2]
[338436942,1726638640250,-500.0,0.00019178,2]
[338436943,1726638640260,-646.33865991,0.00019178,2]
[338436944,1726638640271,-2231.04,0.00019178,2]
[338436945,1726638640282,-500.0,0.00019178,2]
[338436947,1726638640292,-500.0,0.00019178,2]
[338436949,1726638640304,-500.0,0.00019178,2]
[338436951,1726638640314,-500.0,0.00019178,2]
[338436953,1726638640325,-502.41900055,0.00019178,2]
[338436954,1726638640335,-500.0,0.00019178,2]
[338436956,1726638640347,-500.0,0.00019178,2]
[338436958,1726638640357,-500.0,0.00019178,2]
[338436960,1726638640369,-506.5322537,0.00019178,2]
[338436962,1726638640378,-500.0,0.00019178,2]
[338436964,1726638640389,-500.0,0.00019178,2]
[338436966,1726638640399,-500.0,0.00019178,2]
[338436967,1726638640409,-862.57,0.00019178,2]
[338436969,1726638640420,-500.0,0.00019178,2]
[338436971,1726638640431,-500.0,0.00019178,2]
[338436972,1726638640441,-212.82255506,0.00019178,2]
[338436973,1726638640451,-500.0,0.00019178,2]
[338436974,1726638640462,-500.0,0.00019178,2]
[338436975,1726638640473,-500.0,0.00019178,2]
[338436976,1726638640483,-500.0,0.00019178,2]
[338436977,1726638640494,-500.0,0.00019178,2]
[338436978,1726638640504,-500.0,0.00019178,2]
[338436979,1726638640515,-500.0,0.00019178,2]
[338436980,1726638640526,-500.0,0.00019178,2]
[338436981,1726638640537,-500.0,0.00019178,2]
[338436982,1726638640547,-500.0,0.00019178,2]
[338436983,1726638640556,-500.0,0.00019178,2]
[338436984,1726638640567,-500.0,0.00019178,2]
[338436985,1726638640579,-500.0,0.00019178,2]
[338436986,1726638640588,-500.0,0.00019178,2]
[338436987,1726638640599,-500.0,0.00019178,2]
[338436988,1726638640610,-500.0,0.00019178,2]
[338436989,1726638640621,-500.0,0.00019178,2]
[338436990,1726638640630,-500.0,0.00019178,2]
[338436991,1726638640641,-632.77908939,0.00019178,2]
[338436992,1726638640651,-500.0,0.00019178,2]
[338436993,1726638640661,-500.0,0.00019178,2]
[338436994,1726638640675,-500.0,0.00019178,2]
[338436995,1726638640689,-500.0,0.00019178,2]
[338436996,1726638640699,-500.0,0.00019178,2]
[338436997,1726638640708,-500.0,0.00019178,2]
[338436998,1726638640717,-500.0,0.00019178,2]
[338436999,1726638640727,-500.0,0.00019178,2]
[338437000,1726638640736,-500.0,0.00019178,2]
[338437001,1726638640745,-500.0,0.00019178,2]
[338437002,1726638640753,-500.0,0.00019178,2]
[338437003,1726638640763,-500.0,0.00019178,2]
[338437004,1726638640776,-380.90304259,0.00019178,2]
[338437005,1726638640785,-500.0,0.00019178,2]
[338437006,1726638640794,-500.0,0.00019178,2]
[338437007,1726638640803,-500.0,0.00019178,2]
[338437008,1726638640814,-808.05,0.00019178,2]
[338437009,1726638640823,-500.0,0.00019178,2]
[338437010,1726638640833,-500.0,0.00019178,2]
[338437011,1726638640843,-500.0,0.00019178,2]
[338437012,1726638640853,-500.0,0.00019178,2]
[338437013,1726638640863,-500.0,0.00019178,2]
[338437014,1726638640873,-830.24,0.00019178,2]
[338437015,1726638640882,-500.0,0.00019178,2]
[338437016,1726638640891,-1383.65,0.00019178,2]
[338437017,1726638640901,-500.0,0.00019178,2]
[338437018,1726638640911,-500.0,0.00019178,2]
[338437019,1726638640921,-972.65,0.00019178,2]
[338437020,1726638640931,-500.0,0.00019178,2]
[338437021,1726638640940,-546.2,0.00019178,2]
[338437022,1726638640950,-842.22,0.00019178,2]
[338437023,1726638640960,-511.81,0.00019178,2]
[338437024,1726638640970,-500.0,0.00019178,2]
[338437025,1726638640980,-500.0,0.00019178,2]
[338437026,1726638640990,-500.0,0.00019178,2]
[338437027,1726638641000,-500.0,0.00019178,2]
[338437028,1726638641010,-151.0,0.00019178,2]
[338437029,1726638641020,-500.0,0.00019178,2]
[338437030,1726638641030,-575.09232438,0.00019178,2]
[338437031,1726638641040,-500.0,0.00019178,2]
[338437032,1726638641049,-500.0,0.00019178,2]
[338437033,1726638641059,-500.0,0.00019178,2]
[338437034,1726638641068,-500.0,0.00019178,2]
[338437035,1726638641077,-500.0,0.00019178,2]
[338437036,1726638641087,-500.0,0.00019178,2]
[338437037,1726638641096,-563.22,0.00019178,2]
[338437038,1726638641106,-500.0,0.00019178,2]
[338437039,1726638641115,-500.0,0.00019178,2]
[338437040,1726638641125,-500.0,0.00019178,2]
[338437041,1726638641134,-819.61,0.00019178,2]
[338437042,1726638641143,-500.0,0.00019178,2]
[338437043,1726638641153,-603.84,0.00019178,2]
[338437044,1726638641162,-500.0,0.00019178,2]
[338437045,1726638641173,-500.0,0.00019178,2]
[338437046,1726638641183,-500.0,0.00019178,2]
[338437047,1726638641192,-1054.14,0.00019178,2]
[338437048,1726638641202,-509.80509317,0.00019178,2]
[338437049,1726638641211,-500.0,0.00019178,2]
[338437050,1726638641221,-866.6,0.00019178,2]
[338437051,1726638641230,-509.93696176,0.00019178,2]
[338437052,1726638641241,-610.92049014,0.00019178,2]
[338437053,1726638641250,-500.0,0.00019178,2]
[338437054,1726638641260,-500.0,0.00019178,2]
[338437055,1726638641270,-501.04744739,0.00019178,2]
[338437056,1726638641279,-500.0,0.00019178,2]
[338437057,1726638641289,-500.0,0.00019178,2]
[338437058,1726638641298,-500.0,0.00019178,2]
[338437059,1726638641308,-502.42661494,0.00019178,2]
[338437060,1726638641318,-250.0,0.00019178,2]
[338437061,1726638641327,-576.3,0.00019178,2]
[338437062,1726638641336,-506.06267921,0.00019178,2]
[338437063,1726638641346,-1271.61,0.00019178,2]
[338437064,1726638641355,-1871.85,0.00019178,2]
[338437065,1726638641365,-500.0,0.00019178,2]
[338437066,1726638641374,-1138.6,0.00019178,2]
[338437067,1726638641384,-437.35334379,0.00019178,2]
[338437068,1726638641394,-500.0,0.00019178,2]
[338437069,1726638641403,-500.0,0.00019178,2]
[338437070,1726638641414,-2051.65,0.00019178,2]
[338437071,1726638641424,-724.05,0.00019178,2]
[338437072,1726638641434,-500.0,0.00019178,2]
[338437073,1726638641443,-789.17,0.00019178,2]
[338437074,1726638641453,-151.0,0.00019178,2]
[338437075,1726638641462,-500.0,0.00019178,2]
[338437076,1726638641472,-851.54,0.00019178,2]
[338437077,1726638641481,-500.0,0.00019178,2]
[338437078,1726638641491,-1490.52,0.00019178,2]
[338437079,1726638641500,-523.7,0.00019178,2]
[338437080,1726638641511,-862.72,0.00019178,2]
[338437081,1726638641521,-500.0,0.00019178,2]
[338437082,1726638641530,-500.0,0.00019178,2]
[338437083,1726638641540,-500.0,0.00019178,2]
[338437084,1726638641550,-500.0,0.00019178,2]
[338437085,1726638641559,-500.0,0.00019178,2]
[338437086,1726638641569,-648.06289456,0.00019178,2]
[338437087,1726638641579,-714.57,0.00019178,2]
[338437088,1726638641588,-1365.09,0.00019178,2]
[338437089,1726638641597,-1295.93,0.00019178,2]
[338437090,1726638641606,-628.47,0.00019178,2]
[338437091,1726638641615,-500.0,0.00019178,2]
[338437092,1726638641625,-500.0,0.00019178,2]
[338437093,1726638641635,-1017.71,0.00019178,2]
[338437094,1726638641645,-1502.75,0.00019178,2]
[338437095,1726638641654,-500.0,0.00019178,2]
[338437096,1726638641664,-500.0,0.00019178,2]
[338437097,1726638641674,-2845.51,0.00019178,2]
[338437098,1726638641684,-1213.89,0.00019178,2]
[338437099,1726638641694,-1213.89,0.00019178,2]
[338437100,1726638641704,-1213.89,0.00019178,2]
[338437101,1726638641713,-1213.89,0.00019178,2]
[338437102,1726638641724,-1213.89,0.00019178,2]
[338437103,1726638641733,-1213.89,0.00019178,2]
[338437104,1726638641743,-500.0,0.00019178,2]
[338437105,1726638641753,-1213.89,0.00019178,2]
[338437106,1726638641763,-1213.89,0.00019178,2]
[338437107,1726638641777,-500.0,0.00019178,2]
[338437108,1726638641787,-1213.89,0.00019178,2]
[338437109,1726638641797,-500.0,0.00019178,2]
[338437110,1726638641807,-500.0,0.00019178,2]
[338437111,1726638641818,-500.0,0.00019178,2]
[338437112,1726638641827,-1213.89,0.00019178,2]
[338437113,1726638641838,-500.0,0.00019178,2]
[338437114,1726638641849,-1213.89,0.00019178,2]
[338437115,1726638641859,-500.0,0.00019178,2]
[338437116,1726638641868,-1213.89,0.00019178,2]
[338437117,1726638641878,-536.19682184,0.00019178,2]
[338437118,1726638641887,-500.0,0.00019178,2]
[338437119,1726638641897,-1213.89,0.00019178,2]
[338437120,1726638641908,-1213.89,0.00019178,2]
[338437121,1726638641918,-1213.89,0.00019178,2]
[338437122,1726638641928,-1213.89,0.00019178,2]
[338437123,1726638641938,-1213.89,0.00019178,2]
[338437124,1726638641948,-500.0,0.00019178,2]
[338437125,1726638641958,-1213.89,0.00019178,2]
[338437126,1726638641970,-1213.89,0.00019178,2]
[338437127,1726638641981,-151.0,0.00019178,2]
[338437128,1726638641991,-1213.89,0.00019178,2]
[338437129,1726638642001,-1213.89,0.00019178,2]
[338437130,1726638642013,-1213.89,0.00019178,2]
[338437131,1726638642024,-1213.89,0.00019178,2]
[338437132,1726638642035,-1213.92239255,0.00019178,2]
[338437133,1726638642045,-500.0,0.00019178,2]
[338437134,1726638642055,-500.0,0.00019178,2]
[338437135,1726638642065,-500.0,0.00019178,2]
[338437136,1726638642075,-500.0,0.00019178,2]
[338437137,1726638642086,-500.0,0.00019178,2]
[338437138,1726638642098,-500.0,0.00019178,2]
[338437139,1726638642255,-500.0,0.00019178,2]
[338437140,1726638642293,-500.0,0.00019178,2]
[338437141,1726638642304,-500.0,0.00019178,2]
[338437142,1726638642315,-500.0,0.00019178,2]
[338437143,1726638642325,-500.0,0.00019178,2]
[338437144,1726638642335,-500.0,0.00019178,2]
[338437145,1726638642345,-500.0,0.00019178,2]
[338437146,1726638642355,-500.0,0.00019178,2]
[338437147,1726638642364,-500.0,0.00019178,2]
[338437148,1726638642375,-500.0,0.00019178,2]
[338437149,1726638642387,-500.0,0.00019178,2]
[338437150,1726638642398,-500.0,0.00019178,2]
[338437152,1726638642409,-500.0,0.00019178,2]
[338437154,1726638642419,-500.0,0.00019178,2]
[338437155,1726638642430,-500.0,0.00019178,2]
[338437157,1726638642441,-1258.93,0.00019178,2]
[338437159,1726638642451,-500.0,0.00019178,2]
[338437160,1726638642461,-851.34,0.00019178,2]
[338437161,1726638642471,-500.0,0.00019178,2]
[338437162,1726638642482,-500.0,0.00019178,2]
[338437163,1726638642491,-500.0,0.00019178,2]
[338437164,1726638642501,-500.0,0.00019178,2]
[338437165,1726638642512,-500.0,0.00019178,2]
[338437166,1726638642521,-500.0,0.00019178,2]
[338437167,1726638642531,-561.1,0.00019178,2]
[338437168,1726638642541,-500.0,0.00019178,2]
[338437169,1726638642551,-500.0,0.00019178,2]
[338437170,1726638642561,-169.53195245,0.00019178,2]
[338437171,1726638642570,-500.0,0.00019178,2]
[338437172,1726638642579,-500.0,0.00019178,2]
[338437173,1726638642588,-500.0,0.00019178,2]
[338437174,1726638642598,-500.0,0.00019178,2]
[338437175,1726638642607,-500.0,0.00019178,2]
[338437177,1726638642617,-219.85106024,0.00019178,2]
[338437179,1726638642627,-500.0,0.00019178,2]
[338437180,1726638642636,-759.28,0.00019178,2]
[338437182,1726638642646,-1410.58,0.00019178,2]
[338437183,1726638642656,-500.0,0.00019178,2]
[338437184,1726638642665,-500.0,0.00019178,2]
[338437185,1726638642676,-500.0,0.00019178,2]
[338437186,1726638642686,-861.12,0.00019178,2]
[338437187,1726638642695,-504.1266409,0.00019178,2]
[338437188,1726638642706,-500.0,0.00019178,2]
[338437189,1726638642716,-500.0,0.00019178,2]
[338437190,1726638642728,-500.0,0.00019178,2]
[338437191,1726638642740,-895.98,0.00019178,2]
[338437192,1726638642752,-500.0,0.00019178,2]
[338437194,1726638642764,-580.09,0.00019178,2]
[338437196,1726638642780,-572.91,0.00019178,2]
[338437197,1726638642792,-500.0,0.00019178,2]
[338437198,1726638642803,-500.0,0.00019178,2]
[338437199,1726638642813,-218.33523406,0.00019178,2]
[338437200,1726638642825,-500.0,0.00019178,2]
[338437201,1726638642835,-500.0,0.00019178,2]
[338437202,1726638642848,-696.35,0.00019178,2]
[338437203,1726638642857,-500.0,0.00019178,2]
[338437204,1726638642867,-500.0,0.00019178,2]
[338437205,1726638642878,-1468.78,0.00019178,2]
[338437206,1726638642889,-705.18,0.00019178,2]
[338437207,1726638642899,-500.0,0.00019178,2]
[338437208,1726638642910,-842.38,0.00019178,2]
[338437210,1726638642923,-500.0,0.00019178,2]
[338437212,1726638642936,-500.0,0.00019178,2]
[338437214,1726638642947,-500.0,0.00019178,2]
[338437215,1726638642958,-500.0,0.00019178,2]
[338437216,1726638642970,-638.07343698,0.00019178,2]
[338437217,1726638642983,-500.0,0.00019178,2]
[338437218,1726638642996,-500.0,0.00019178,2]
[338437219,1726638643006,-500.0,0.00019178,2]
[338437220,1726638643016,-589.93,0.00019178,2]
[338437221,1726638643026,-500.0,0.00019178,2]
[338437222,1726638643036,-500.0,0.00019178,2]
[338437223,1726638643046,-508.16464804,0.00019178,2]
[338437225,1726638643056,-646.59,0.00019178,2]
[338437226,1726638643065,-2706.18,0.00019178,2]
[338437227,1726638643074,-500.0,0.00019178,2]
[338437228,1726638643085,-830.72,0.00019178,2]
[338437230,1726638643094,-502.76714565,0.00019178,2]
[338437232,1726638643104,-500.0,0.00019178,2]
[338437234,1726638643113,-1387.62,0.00019178,2]
[338437235,1726638643123,-500.0,0.00019178,2]
[338437236,1726638643132,-767.36,0.00019178,2]
[338437237,1726638643143,-500.0,0.00019178,2]
[338437238,1726638643155,-500.0,0.00019178,2]
[338437239,1726638643165,-500.0,0.00019178,2]
[338437240,1726638643175,-500.0,0.00019178,2]
[338437241,1726638643185,-1069.89,0.00019178,2]
[338437242,1726638643196,-2596.4,0.00019178,2]
[338437243,1726638643205,-267.80655226,0.00019178,2]
[338437244,1726638643215,-500.0,0.00019178,2]
[338437245,1726638643226,-500.0,0.00019178,2]
[338437246,1726638643238,-509.02148522,0.00019178,2]
[338437247,1726638643249,-1254.09,0.00019178,2]
[338437248,1726638643261,-500.0,0.00019178,2]
[338437249,1726638643271,-500.0,0.00019178,2]
[338437250,1726638643280,-500.0,0.00019178,2]
[338437251,1726638643290,-579.76,0.00019178,2]
[338437252,1726638643301,-2713.95,0.00019178,2]
[338437253,1726638643311,-500.0,0.00019178,2]
[338437254,1726638643322,-630.61229126,0.00019178,2]
[338437255,1726638643333,-500.0,0.00019178,2]
[338437256,1726638643343,-500.0,0.00019178,2]
[338437257,1726638643354,-500.0,0.00019178,2]
[338437258,1726638643364,-500.0,0.00019178,2]
[338437259,1726638643373,-855.96,0.00019178,2]
[338437260,1726638643384,-500.0,0.00019178,2]
[338437261,1726638643394,-500.0,0.00019178,2]
[338437262,1726638643404,-673.86,0.00019178,2]
[338437263,1726638643415,-500.0,0.00019178,2]
[338437264,1726638643426,-500.0,0.00019178,2]